[Event "Titled Tuesday Blitz March 08 Late 2022"]
[White "Van Foreest, Jorden"]
[Black "Kovanova, Baira"]
[WhiteFideId "1039784"]
[BlackFideId "4164083"]
[WhiteElo "2609"]
[BlackElo "2190"]
[Result "1-0"]
[Round "01"]
[TimeControl "180+1"]
[Date "2022.03.08"]
[WhiteClock "0:01:19"]
[BlackClock "0:00:08"]

1. Nf3 {[%clk 0:03:00]}  Nf6 {[%clk 0:02:59]} 2. g3 {[%clk 0:02:59]}  d5 {[%clk 0:02:57]} 3. Bg2 {[%clk 0:03:00]}  c5 {[%clk 0:02:55]} 4. O-O {[%clk 0:03:00]}  Nc6 {[%clk 0:02:55]} 5. d4 {[%clk 0:03:00]}  cxd4 {[%clk 0:02:54]} 6. Nxd4 {[%clk 0:03:01]}  Bd7 {[%clk 0:02:44]} 7. c4 {[%clk 0:02:57]}  dxc4 {[%clk 0:02:43]} 8. Nxc6 {[%clk 0:02:57]}  Bxc6 {[%clk 0:02:43]} 9. Bxc6+ {[%clk 0:02:57]}  bxc6 {[%clk 0:02:42]} 10. Qa4 {[%clk 0:02:57]}  Qb6 {[%clk 0:02:36]} 11. Qxc4 {[%clk 0:02:53]}  e6 {[%clk 0:02:34]} 12. Be3 {[%clk 0:02:52]}  Qb5 {[%clk 0:02:34]} 13. Rc1 {[%clk 0:02:48]}  Bd6 {[%clk 0:02:14]} 14. Qxc6+ {[%clk 0:02:44]}  Qxc6 {[%clk 0:02:14]} 15. Rxc6 {[%clk 0:02:45]}  Kd7 {[%clk 0:02:14]} 16. Ra6 {[%clk 0:02:42]}  Rhb8 {[%clk 0:01:54]} 17. Nc3 {[%clk 0:02:24]}  Ke7 {[%clk 0:01:45]} 18. Rd1 {[%clk 0:02:24]}  Be5 {[%clk 0:01:31]} 19. Bc5+ {[%clk 0:02:24]}  Ke8 {[%clk 0:01:31]} 20. Ba3 {[%clk 0:02:16]}  Rb7 {[%clk 0:01:22]} 21. Na4 {[%clk 0:02:13]}  Rc8 {[%clk 0:00:57]} 22. Nc5 {[%clk 0:02:11]}  Rb5 {[%clk 0:00:51]} 23. Nd3 {[%clk 0:02:09]}  Bd4 {[%clk 0:00:47]} 24. b3 {[%clk 0:02:06]}  Bb6 {[%clk 0:00:41]} 25. Bb2 {[%clk 0:02:06]}  Rd8 {[%clk 0:00:35]} 26. Bxf6 {[%clk 0:02:02]}  gxf6 {[%clk 0:00:35]} 27. Ra4 {[%clk 0:02:01]}  Rc5 {[%clk 0:00:27]} 28. Rc4 {[%clk 0:01:38]}  Rxc4 {[%clk 0:00:26]} 29. bxc4 {[%clk 0:01:39]}  e5 {[%clk 0:00:26]} 30. Rc1 {[%clk 0:01:34]}  e4 {[%clk 0:00:24]} 31. Nf4 {[%clk 0:01:34]}  Rd2 {[%clk 0:00:24]} 32. a3 {[%clk 0:01:25]}  Bc5 {[%clk 0:00:22]} 33. e3 {[%clk 0:01:16]}  Bxa3 {[%clk 0:00:15]} 34. Ra1 {[%clk 0:01:17]}  Bc5 {[%clk 0:00:14]} 35. Nd5 {[%clk 0:01:17]}  f5 {[%clk 0:00:13]} 36. Ra5 {[%clk 0:01:18]}  Bb6 {[%clk 0:00:08]} 37. Nxb6 {[%clk 0:01:18]}  axb6 {[%clk 0:00:09]} 38. Rxf5 {[%clk 0:01:19]}  Rc2 {[%clk 0:00:09]} 39. Re5+ {[%clk 0:01:18]}  Kf8 {[%clk 0:00:08]} 40. Rxe4 {[%clk 0:01:19]} 1-0


[Site "https://www.chess.com"]

[Event "Titled Tuesday Blitz March 08 Late 2022"]
[White "Vifleemskaia, Svetlana"]
[Black "Fishbein, Alexander"]
[WhiteFideId "4129490"]
[BlackFideId "2000377"]
[WhiteElo "2332"]
[BlackElo "2634"]
[Result "0-1"]
[Round "01"]
[TimeControl "180+1"]
[Date "2022.03.09"]
[WhiteClock "0:00:01"]
[BlackClock "0:00:26"]

1. d4 {[%clk 0:02:56]}  Nf6 {[%clk 0:02:59]} 2. c4 {[%clk 0:02:55]}  g6 {[%clk 0:02:58]} 3. Nc3 {[%clk 0:02:55]}  Bg7 {[%clk 0:02:58]} 4. e4 {[%clk 0:02:55]}  O-O {[%clk 0:02:59]} 5. Nge2 {[%clk 0:02:56]}  d6 {[%clk 0:02:59]} 6. Ng3 {[%clk 0:02:57]}  a6 {[%clk 0:02:56]} 7. a4 {[%clk 0:02:56]}  Nc6 {[%clk 0:02:55]} 8. d5 {[%clk 0:02:53]}  Nb4 {[%clk 0:02:53]} 9. a5 {[%clk 0:02:42]}  c5 {[%clk 0:02:52]} 10. Be2 {[%clk 0:02:38]}  e6 {[%clk 0:02:52]} 11. O-O {[%clk 0:02:37]}  exd5 {[%clk 0:02:50]} 12. cxd5 {[%clk 0:02:34]}  Re8 {[%clk 0:02:48]} 13. Be3 {[%clk 0:02:26]}  h5 {[%clk 0:02:47]} 14. Bg5 {[%clk 0:02:18]}  Qc7 {[%clk 0:02:43]} 15. Qd2 {[%clk 0:02:10]}  Nh7 {[%clk 0:02:38]} 16. Bh6 {[%clk 0:02:06]}  h4 {[%clk 0:02:37]} 17. Bxg7 {[%clk 0:02:04]}  Kxg7 {[%clk 0:02:36]} 18. Nh1 {[%clk 0:01:57]}  h3 {[%clk 0:02:30]} 19. g3 {[%clk 0:01:54]}  Nf6 {[%clk 0:02:24]} 20. f3 {[%clk 0:01:53]}  b5 {[%clk 0:02:17]} 21. axb6 {[%clk 0:01:47]}  Qxb6 {[%clk 0:02:16]} 22. Bc4 {[%clk 0:01:47]}  Bd7 {[%clk 0:02:14]} 23. Nf2 {[%clk 0:01:45]}  Bb5 {[%clk 0:02:11]} 24. b3 {[%clk 0:01:32]}  Nd7 {[%clk 0:02:00]} 25. Nxh3 {[%clk 0:01:26]}  Bxc4 {[%clk 0:01:55]} 26. bxc4 {[%clk 0:01:26]}  Ne5 {[%clk 0:01:55]} 27. Na4 {[%clk 0:01:20]}  Qc7 {[%clk 0:01:49]} 28. Qc3 {[%clk 0:01:08]}  f6 {[%clk 0:01:43]} 29. f4 {[%clk 0:01:04]}  Ng4 {[%clk 0:01:41]} 30. Ng5 {[%clk 0:01:02]}  Kg8 {[%clk 0:01:16]} 31. Ne6 {[%clk 0:01:01]}  Qh7 {[%clk 0:01:16]} 32. h4 {[%clk 0:00:54]}  Re7 {[%clk 0:01:06]} 33. Qf3 {[%clk 0:00:38]}  f5 {[%clk 0:00:56]} 34. e5 {[%clk 0:00:31]}  dxe5 {[%clk 0:00:54]} 35. d6 {[%clk 0:00:31]}  e4 {[%clk 0:00:49]} 36. Qd1 {[%clk 0:00:15]}  Rxe6 {[%clk 0:00:47]} 37. Nxc5 {[%clk 0:00:14]}  Ree8 {[%clk 0:00:39]} 38. d7 {[%clk 0:00:14]}  Red8 {[%clk 0:00:38]} 39. Qd6 {[%clk 0:00:13]}  Qf7 {[%clk 0:00:33]} 40. Rad1 {[%clk 0:00:08]}  Nd3 {[%clk 0:00:32]} 41. Nxd3 {[%clk 0:00:03]}  exd3 {[%clk 0:00:32]} 42. Rxd3 {[%clk 0:00:02]}  Nf6 {[%clk 0:00:31]} 43. Rfd1 {[%clk 0:00:01]}  Rxd7 {[%clk 0:00:29]} 44. Qc6 {[%clk 0:00:01]}  Rad8 {[%clk 0:00:26]} 0-1


[Site "https://www.chess.com"]

[Event "Titled Tuesday Blitz March 08 Late 2022"]
[White "Xiong, Jeffery"]
[Black "Krishnan, Varun"]
[WhiteFideId "2047640"]
[BlackFideId "5054508"]
[WhiteElo "2727"]
[BlackElo "2526"]
[Result "1-0"]
[Round "01"]
[TimeControl "180+1"]
[Date "2022.03.08"]
[WhiteClock "0:00:20"]
[BlackClock "0:00:04"]

1. e4 {[%clk 0:03:00]}  c5 {[%clk 0:02:57]} 2. Nc3 {[%clk 0:02:59]}  Nc6 {[%clk 0:02:56]} 3. Nf3 {[%clk 0:02:59]}  e6 {[%clk 0:02:53]} 4. d4 {[%clk 0:02:58]}  cxd4 {[%clk 0:02:54]} 5. Nxd4 {[%clk 0:02:59]}  Qc7 {[%clk 0:02:54]} 6. g4 {[%clk 0:02:58]}  a6 {[%clk 0:02:48]} 7. Bg2 {[%clk 0:02:51]}  b5 {[%clk 0:02:41]} 8. Be3 {[%clk 0:02:30]}  Bb7 {[%clk 0:02:38]} 9. a3 {[%clk 0:02:30]}  h6 {[%clk 0:02:21]} 10. Qe2 {[%clk 0:02:26]}  Nf6 {[%clk 0:02:15]} 11. h4 {[%clk 0:02:25]}  h5 {[%clk 0:02:04]} 12. Nxc6 {[%clk 0:02:19]}  Bxc6 {[%clk 0:02:03]} 13. gxh5 {[%clk 0:02:16]}  Nxh5 {[%clk 0:02:02]} 14. Nd5 {[%clk 0:02:11]}  Qe5 {[%clk 0:01:35]} 15. O-O-O {[%clk 0:01:26]}  exd5 {[%clk 0:01:15]} 16. exd5 {[%clk 0:01:27]}  Bb7 {[%clk 0:01:15]} 17. Rhe1 {[%clk 0:01:27]}  O-O-O {[%clk 0:01:02]} 18. Qd2 {[%clk 0:01:23]}  Bxa3 {[%clk 0:00:38]} 19. Bd4 {[%clk 0:01:19]}  Qh2 {[%clk 0:00:37]} 20. Qc3+ {[%clk 0:01:14]}  Qc7 {[%clk 0:00:29]} 21. Qxa3 {[%clk 0:01:11]}  d6 {[%clk 0:00:24]} 22. Qe3 {[%clk 0:01:05]}  Qa5 {[%clk 0:00:17]} 23. Bb6 {[%clk 0:00:55]}  Qa1+ {[%clk 0:00:14]} 24. Kd2 {[%clk 0:00:55]}  Qxb2 {[%clk 0:00:14]} 25. Rb1 {[%clk 0:00:29]}  Qf6 {[%clk 0:00:14]} 26. Bxd8 {[%clk 0:00:27]}  Rxd8 {[%clk 0:00:14]} 27. Rb4 {[%clk 0:00:27]}  g6 {[%clk 0:00:07]} 28. c4 {[%clk 0:00:22]}  bxc4 {[%clk 0:00:04]} 29. Rxc4+ {[%clk 0:00:22]}  Kb8 {[%clk 0:00:05]} 30. Rb1 {[%clk 0:00:23]}  Rd7 {[%clk 0:00:04]} 31. Bh3 {[%clk 0:00:21]}  Re7 {[%clk 0:00:04]} 32. Rc8# {[%clk 0:00:20]} 1-0


[Site "https://www.chess.com"]

[Event "Titled Tuesday Blitz March 08 Late 2022"]
[White "Xu, Yi"]
[Black "Debray, Christopher"]
[WhiteFideId "8605564"]
[BlackFideId "630810"]
[WhiteElo "2471"]
[BlackElo "2393"]
[Result "1-0"]
[Round "01"]
[TimeControl "180+1"]
[Date "2022.03.08"]
[WhiteClock "0:00:06"]
[BlackClock "0:00:38"]

1. e4 {[%clk 0:02:58]}  c6 {[%clk 0:03:00]} 2. d4 {[%clk 0:02:58]}  d5 {[%clk 0:03:01]} 3. e5 {[%clk 0:02:58]}  c5 {[%clk 0:03:01]} 4. dxc5 {[%clk 0:02:57]}  e6 {[%clk 0:03:01]} 5. a3 {[%clk 0:02:56]}  Bxc5 {[%clk 0:03:01]} 6. Bd3 {[%clk 0:02:54]}  f5 {[%clk 0:03:00]} 7. Nf3 {[%clk 0:02:46]}  Ne7 {[%clk 0:02:59]} 8. b4 {[%clk 0:02:45]}  Bb6 {[%clk 0:02:59]} 9. Bb2 {[%clk 0:02:38]}  O-O {[%clk 0:02:59]} 10. Nc3 {[%clk 0:02:35]}  h6 {[%clk 0:02:57]} 11. h4 {[%clk 0:02:31]}  Nbc6 {[%clk 0:02:53]} 12. Ne2 {[%clk 0:02:31]}  Bd7 {[%clk 0:02:50]} 13. Nf4 {[%clk 0:02:29]}  Qe8 {[%clk 0:02:47]} 14. h5 {[%clk 0:02:29]}  Nd8 {[%clk 0:02:42]} 15. c4 {[%clk 0:02:18]}  Nf7 {[%clk 0:02:38]} 16. c5 {[%clk 0:02:10]}  Bc7 {[%clk 0:02:38]} 17. Qe2 {[%clk 0:02:10]}  Ng5 {[%clk 0:02:37]} 18. Nh4 {[%clk 0:01:46]}  Ne4 {[%clk 0:02:31]} 19. Nhg6 {[%clk 0:01:42]}  Nxg6 {[%clk 0:02:31]} 20. Nxg6 {[%clk 0:01:42]}  Rf7 {[%clk 0:02:28]} 21. Rh3 {[%clk 0:01:32]}  a5 {[%clk 0:02:27]} 22. f3 {[%clk 0:01:30]}  Ng5 {[%clk 0:02:25]} 23. Rh1 {[%clk 0:01:29]}  axb4 {[%clk 0:02:14]} 24. axb4 {[%clk 0:01:29]}  Rxa1+ {[%clk 0:02:15]} 25. Bxa1 {[%clk 0:01:29]}  b6 {[%clk 0:02:16]} 26. Bd4 {[%clk 0:01:26]}  Qb8 {[%clk 0:01:58]} 27. Kf2 {[%clk 0:00:47]}  Be8 {[%clk 0:01:48]} 28. Kg3 {[%clk 0:00:44]}  Rd7 {[%clk 0:01:42]} 29. c6 {[%clk 0:00:38]}  Rd8 {[%clk 0:01:41]} 30. b5 {[%clk 0:00:38]}  Bxg6 {[%clk 0:01:28]} 31. hxg6 {[%clk 0:00:37]}  Rf8 {[%clk 0:01:26]} 32. f4 {[%clk 0:00:27]}  Ne4+ {[%clk 0:01:25]} 33. Bxe4 {[%clk 0:00:27]}  fxe4 {[%clk 0:01:25]} 34. Qg4 {[%clk 0:00:20]}  Qe8 {[%clk 0:01:25]} 35. Rh5 {[%clk 0:00:20]}  Qe7 {[%clk 0:01:16]} 36. Kh2 {[%clk 0:00:18]}  Ra8 {[%clk 0:01:12]} 37. Bf2 {[%clk 0:00:17]}  Rf8 {[%clk 0:01:03]} 38. Bh4 {[%clk 0:00:16]}  Qe8 {[%clk 0:01:04]} 39. Bf6 {[%clk 0:00:11]}  gxf6 {[%clk 0:00:53]} 40. Rxh6 {[%clk 0:00:10]}  Qe7 {[%clk 0:00:47]} 41. Rh7 {[%clk 0:00:06]}  f5 {[%clk 0:00:38]} 42. Qh5 {[%clk 0:00:06]} 1-0


[Site "https://www.chess.com"]

[Event "Titled Tuesday Blitz March 08 Late 2022"]
[White "Zivkovic, Nemanja"]
[Black "Cupid, Kevin"]
[WhiteFideId "942154"]
[BlackFideId "7700512"]
[WhiteElo "2388"]
[BlackElo "2096"]
[Result "1-0"]
[Round "01"]
[TimeControl "180+1"]
[Date "2022.03.09"]
[WhiteClock "0:00:18"]
[BlackClock "0:00:15"]

1. e4 {[%clk 0:02:59]}  c6 {[%clk 0:02:58]} 2. d4 {[%clk 0:02:59]}  d5 {[%clk 0:02:59]} 3. e5 {[%clk 0:02:58]}  Bf5 {[%clk 0:02:59]} 4. Nf3 {[%clk 0:02:58]}  e6 {[%clk 0:02:59]} 5. Be2 {[%clk 0:02:59]}  c5 {[%clk 0:03:00]} 6. Be3 {[%clk 0:02:58]}  Nc6 {[%clk 0:03:00]} 7. Nc3 {[%clk 0:02:57]}  a6 {[%clk 0:02:58]} 8. O-O {[%clk 0:02:39]}  cxd4 {[%clk 0:02:49]} 9. Nxd4 {[%clk 0:02:39]}  Nxd4 {[%clk 0:02:46]} 10. Qxd4 {[%clk 0:02:25]}  Ne7 {[%clk 0:02:46]} 11. Bg5 {[%clk 0:01:57]}  Nc6 {[%clk 0:02:30]} 12. Qf4 {[%clk 0:01:37]}  Be7 {[%clk 0:02:01]} 13. Bxe7 {[%clk 0:01:31]}  Nxe7 {[%clk 0:02:00]} 14. Bd3 {[%clk 0:01:27]}  O-O {[%clk 0:01:56]} 15. Ne2 {[%clk 0:01:24]}  Qc7 {[%clk 0:01:49]} 16. Bxf5 {[%clk 0:01:21]}  Nxf5 {[%clk 0:01:48]} 17. c3 {[%clk 0:01:20]}  Ne7 {[%clk 0:01:33]} 18. Qe3 {[%clk 0:01:11]}  Rac8 {[%clk 0:01:27]} 19. Rad1 {[%clk 0:01:09]}  Qa5 {[%clk 0:01:20]} 20. a3 {[%clk 0:01:06]}  Qb5 {[%clk 0:01:20]} 21. Rd2 {[%clk 0:01:04]}  Nf5 {[%clk 0:01:18]} 22. Qd3 {[%clk 0:00:53]}  Rc4 {[%clk 0:01:17]} 23. Ng3 {[%clk 0:00:46]}  Ne7 {[%clk 0:00:55]} 24. f4 {[%clk 0:00:39]}  Nc6 {[%clk 0:00:38]} 25. Re2 {[%clk 0:00:30]}  d4 {[%clk 0:00:26]} 26. cxd4 {[%clk 0:00:27]}  Nxd4 {[%clk 0:00:25]} 27. Ref2 {[%clk 0:00:22]}  Rd8 {[%clk 0:00:23]} 28. f5 {[%clk 0:00:21]}  Nc6 {[%clk 0:00:17]} 29. Qe2 {[%clk 0:00:18]}  Qxe5 {[%clk 0:00:16]} 30. Qxc4 {[%clk 0:00:18]}  Rd3 {[%clk 0:00:15]} 31. Qxd3 {[%clk 0:00:18]} 1-0


[Site "https://www.chess.com"]

[Event "Titled Tuesday Blitz March 08 Late 2022"]
[White "Al-Tarboush, Ward"]
[Black "Oparin, Grigoriy"]
[WhiteFideId "7601450"]
[BlackFideId "24125890"]
[WhiteElo "2276"]
[BlackElo "2665"]
[Result "0-1"]
[Round "02"]
[TimeControl "180+1"]
[Date "2022.03.08"]
[WhiteClock "0:00:02"]
[BlackClock "0:00:54"]

1. e4 {[%clk 0:02:31]}  c5 {[%clk 0:02:59]} 2. Nf3 {[%clk 0:02:31]}  d6 {[%clk 0:03:00]} 3. d4 {[%clk 0:02:31]}  cxd4 {[%clk 0:03:01]} 4. Nxd4 {[%clk 0:02:32]}  Nf6 {[%clk 0:03:01]} 5. Nc3 {[%clk 0:02:32]}  Nc6 {[%clk 0:03:02]} 6. Bg5 {[%clk 0:02:30]}  e6 {[%clk 0:03:02]} 7. Qd2 {[%clk 0:02:22]}  Qb6 {[%clk 0:03:01]} 8. Nb3 {[%clk 0:02:21]}  a6 {[%clk 0:03:02]} 9. O-O-O {[%clk 0:02:17]}  Be7 {[%clk 0:03:02]} 10. f4 {[%clk 0:02:16]}  h6 {[%clk 0:03:01]} 11. Bxf6 {[%clk 0:02:16]}  Bxf6 {[%clk 0:02:59]} 12. Qxd6 {[%clk 0:02:15]}  Be7 {[%clk 0:02:55]} 13. Qd2 {[%clk 0:02:12]}  Qc7 {[%clk 0:02:55]} 14. Bd3 {[%clk 0:02:12]}  b5 {[%clk 0:02:49]} 15. e5 {[%clk 0:02:12]}  Bb7 {[%clk 0:02:48]} 16. Ne4 {[%clk 0:02:10]}  O-O {[%clk 0:02:48]} 17. Nd6 {[%clk 0:02:09]}  Rfd8 {[%clk 0:02:45]} 18. Nc5 {[%clk 0:02:04]}  Nxe5 {[%clk 0:02:35]} 19. fxe5 {[%clk 0:01:44]}  Qxc5 {[%clk 0:02:15]} 20. Nxb7 {[%clk 0:01:37]}  Qxe5 {[%clk 0:02:13]} 21. Qe2 {[%clk 0:01:14]}  Qg5+ {[%clk 0:01:51]} 22. Kb1 {[%clk 0:01:14]}  Rdc8 {[%clk 0:01:52]} 23. Qe4 {[%clk 0:01:12]}  g6 {[%clk 0:01:48]} 24. h4 {[%clk 0:01:13]}  Qf5 {[%clk 0:01:45]} 25. Qxf5 {[%clk 0:01:02]}  gxf5 {[%clk 0:01:46]} 26. g4 {[%clk 0:01:02]}  fxg4 {[%clk 0:01:44]} 27. Rde1 {[%clk 0:00:52]}  Ra7 {[%clk 0:01:41]} 28. Be4 {[%clk 0:00:44]}  Rc7 {[%clk 0:01:40]} 29. Na5 {[%clk 0:00:33]}  Bb4 {[%clk 0:01:40]} 30. Nc6 {[%clk 0:00:34]}  Bxe1 {[%clk 0:01:40]} 31. Nxa7 {[%clk 0:00:33]}  Bf2 {[%clk 0:01:39]} 32. Nc6 {[%clk 0:00:32]}  f5 {[%clk 0:01:39]} 33. Bg2 {[%clk 0:00:29]}  Kg7 {[%clk 0:01:35]} 34. Rf1 {[%clk 0:00:28]}  Bxh4 {[%clk 0:01:31]} 35. Nd4 {[%clk 0:00:28]}  Kf6 {[%clk 0:01:32]} 36. c3 {[%clk 0:00:24]}  Bg5 {[%clk 0:01:29]} 37. Ne2 {[%clk 0:00:23]}  h5 {[%clk 0:01:26]} 38. Ng3 {[%clk 0:00:19]}  h4 {[%clk 0:01:22]} 39. Ne4+ {[%clk 0:00:19]}  Kg6 {[%clk 0:01:23]} 40. Nf2 {[%clk 0:00:16]}  Rd7 {[%clk 0:01:21]} 41. Bc6 {[%clk 0:00:12]}  Rd6 {[%clk 0:01:19]} 42. Be8+ {[%clk 0:00:12]}  Kg7 {[%clk 0:01:20]} 43. Bh5 {[%clk 0:00:10]}  h3 {[%clk 0:01:17]} 44. Nxg4 {[%clk 0:00:09]}  fxg4 {[%clk 0:01:18]} 45. Bxg4 {[%clk 0:00:08]}  h2 {[%clk 0:01:18]} 46. Rh1 {[%clk 0:00:07]}  Rd2 {[%clk 0:01:18]} 47. Bxe6 {[%clk 0:00:07]}  Kf6 {[%clk 0:01:15]} 48. Bc8 {[%clk 0:00:07]}  a5 {[%clk 0:01:15]} 49. Bb7 {[%clk 0:00:06]}  Bf4 {[%clk 0:01:15]} 50. Rf1 {[%clk 0:00:05]}  Kg5 {[%clk 0:01:14]} 51. Re1 {[%clk 0:00:05]}  b4 {[%clk 0:01:13]} 52. cxb4 {[%clk 0:00:05]}  axb4 {[%clk 0:01:14]} 53. a4 {[%clk 0:00:05]}  Kf6 {[%clk 0:01:09]} 54. a5 {[%clk 0:00:05]}  Be5 {[%clk 0:01:09]} 55. Rf1+ {[%clk 0:00:04]}  Ke6 {[%clk 0:01:08]} 56. a6 {[%clk 0:00:04]}  Rxb2+ {[%clk 0:01:08]} 57. Kc1 {[%clk 0:00:05]}  Ra2 {[%clk 0:01:08]} 58. Kd1 {[%clk 0:00:04]}  b3 {[%clk 0:01:08]} 59. Rh1 {[%clk 0:00:01]}  Kd6 {[%clk 0:00:55]} 60. a7 {[%clk 0:00:02]}  Rxa7 {[%clk 0:00:55]} 61. Rxh2 {[%clk 0:00:02]}  Bxh2 {[%clk 0:00:54]} 0-1


[Site "https://www.chess.com"]

[Event "Titled Tuesday Blitz March 08 Late 2022"]
[White "Beerdsen, Thomas"]
[Black "Silva, Miguel Antonio Neto"]
[WhiteFideId "1030108"]
[BlackFideId "1911929"]
[WhiteElo "2585"]
[BlackElo "2204"]
[Result "1-0"]
[Round "02"]
[TimeControl "180+1"]
[Date "2022.03.08"]
[WhiteClock "0:00:10"]
[BlackClock "0:00:18"]

1. e4 {[%clk 0:03:00]}  e5 {[%clk 0:02:59]} 2. Nf3 {[%clk 0:03:00]}  Nc6 {[%clk 0:02:57]} 3. d4 {[%clk 0:03:00]}  exd4 {[%clk 0:02:54]} 4. Bc4 {[%clk 0:03:01]}  Nf6 {[%clk 0:02:48]} 5. O-O {[%clk 0:03:02]}  Nxe4 {[%clk 0:02:44]} 6. Nc3 {[%clk 0:03:03]}  dxc3 {[%clk 0:02:26]} 7. Bxf7+ {[%clk 0:03:02]}  Kxf7 {[%clk 0:02:22]} 8. Qd5+ {[%clk 0:03:03]}  Kf6 {[%clk 0:02:10]} 9. Re1 {[%clk 0:03:03]}  Ne7 {[%clk 0:02:03]} 10. Qxe4 {[%clk 0:02:46]}  Kf7 {[%clk 0:02:02]} 11. Bg5 {[%clk 0:02:38]}  d6 {[%clk 0:01:54]} 12. Qc4+ {[%clk 0:02:28]}  d5 {[%clk 0:01:52]} 13. Qxc3 {[%clk 0:02:26]}  h6 {[%clk 0:01:49]} 14. Ne5+ {[%clk 0:02:09]}  Kg8 {[%clk 0:01:46]} 15. Bh4 {[%clk 0:02:03]}  g5 {[%clk 0:01:27]} 16. Bg3 {[%clk 0:02:03]}  c6 {[%clk 0:01:20]} 17. Re2 {[%clk 0:01:42]}  Nf5 {[%clk 0:01:16]} 18. Rae1 {[%clk 0:01:34]}  Qf6 {[%clk 0:01:00]} 19. Qd3 {[%clk 0:01:12]}  Bd6 {[%clk 0:00:52]} 20. Ng4 {[%clk 0:01:03]}  Qg6 {[%clk 0:00:51]} 21. Re8+ {[%clk 0:00:41]}  Kg7 {[%clk 0:00:45]} 22. Rxh8 {[%clk 0:00:30]}  Kxh8 {[%clk 0:00:43]} 23. Bxd6 {[%clk 0:00:30]}  Qxd6 {[%clk 0:00:40]} 24. Re8+ {[%clk 0:00:30]}  Kg7 {[%clk 0:00:37]} 25. Qc3+ {[%clk 0:00:30]}  d4 {[%clk 0:00:34]} 26. Qb3 {[%clk 0:00:28]}  Qd5 {[%clk 0:00:33]} 27. Qa3 {[%clk 0:00:22]}  c5 {[%clk 0:00:30]} 28. Re5 {[%clk 0:00:15]}  Qf7 {[%clk 0:00:28]} 29. Rxc5 {[%clk 0:00:14]}  b6 {[%clk 0:00:25]} 30. Rc6 {[%clk 0:00:10]}  Bb7 {[%clk 0:00:23]} 31. Rf6 {[%clk 0:00:10]}  Qxf6 {[%clk 0:00:22]} 32. Nxf6 {[%clk 0:00:10]}  Kxf6 {[%clk 0:00:22]} 33. g4 {[%clk 0:00:10]}  Ng7 {[%clk 0:00:20]} 34. c3 {[%clk 0:00:08]}  Ne6 {[%clk 0:00:20]} 35. cxd4 {[%clk 0:00:08]}  Rd8 {[%clk 0:00:20]} 36. h4 {[%clk 0:00:07]}  Rxd4 {[%clk 0:00:20]} 37. hxg5+ {[%clk 0:00:07]}  hxg5 {[%clk 0:00:20]} 38. f3 {[%clk 0:00:06]}  Rd2 {[%clk 0:00:19]} 39. Qc3+ {[%clk 0:00:07]}  Ke7 {[%clk 0:00:18]} 40. Qxd2 {[%clk 0:00:07]}  Bxf3 {[%clk 0:00:19]} 41. a4 {[%clk 0:00:06]}  Bxg4 {[%clk 0:00:19]} 42. Qb4+ {[%clk 0:00:06]}  Kf6 {[%clk 0:00:19]} 43. Qxg4 {[%clk 0:00:07]}  Nf4 {[%clk 0:00:18]} 44. a5 {[%clk 0:00:07]}  bxa5 {[%clk 0:00:18]} 45. Qc8 {[%clk 0:00:07]}  Ne2+ {[%clk 0:00:18]} 46. Kh2 {[%clk 0:00:08]}  Nd4 {[%clk 0:00:18]} 47. Qa6+ {[%clk 0:00:08]}  Ke5 {[%clk 0:00:17]} 48. Qxa5+ {[%clk 0:00:09]}  Kf4 {[%clk 0:00:18]} 49. Qxa7 {[%clk 0:00:09]}  Nf3+ {[%clk 0:00:18]} 50. Kh1 {[%clk 0:00:10]}  g4 {[%clk 0:00:19]} 51. Qb8+ {[%clk 0:00:10]}  Ke3 {[%clk 0:00:18]} 52. b4 {[%clk 0:00:10]} 1-0


[Site "https://www.chess.com"]

[Event "Titled Tuesday Blitz March 08 Late 2022"]
[White "Bellahcene, Bilel"]
[Black "Rudzinska, Michalina"]
[WhiteFideId "696358"]
[BlackFideId "1172883"]
[WhiteElo "2562"]
[BlackElo "1904"]
[Result "1-0"]
[Round "02"]
[TimeControl "180+1"]
[Date "2022.03.09"]
[WhiteClock "0:01:11"]
[BlackClock "0:01:28"]

1. d4 {[%clk 0:03:00]}  e5 {[%clk 0:02:43]} 2. dxe5 {[%clk 0:03:00]}  Nc6 {[%clk 0:02:42]} 3. Nf3 {[%clk 0:03:00]}  Nge7 {[%clk 0:02:41]} 4. g3 {[%clk 0:02:53]}  Ng6 {[%clk 0:02:42]} 5. Bg2 {[%clk 0:02:53]}  Ngxe5 {[%clk 0:02:41]} 6. Nxe5 {[%clk 0:02:54]}  Nxe5 {[%clk 0:02:41]} 7. O-O {[%clk 0:02:54]}  Bc5 {[%clk 0:02:41]} 8. c3 {[%clk 0:02:50]}  Qe7 {[%clk 0:02:41]} 9. Nd2 {[%clk 0:02:47]}  O-O {[%clk 0:02:39]} 10. Nf3 {[%clk 0:02:44]}  d6 {[%clk 0:02:35]} 11. Nxe5 {[%clk 0:02:30]}  dxe5 {[%clk 0:02:34]} 12. Qc2 {[%clk 0:02:24]}  c6 {[%clk 0:02:31]} 13. b4 {[%clk 0:02:24]}  Bb6 {[%clk 0:02:31]} 14. a4 {[%clk 0:02:23]}  Be6 {[%clk 0:02:28]} 15. c4 {[%clk 0:02:02]}  Bd4 {[%clk 0:02:25]} 16. Rb1 {[%clk 0:01:59]}  a5 {[%clk 0:02:20]} 17. e3 {[%clk 0:01:41]}  Bb6 {[%clk 0:02:12]} 18. c5 {[%clk 0:01:35]}  Ba7 {[%clk 0:02:11]} 19. Ba3 {[%clk 0:01:29]}  axb4 {[%clk 0:02:07]} 20. Bxb4 {[%clk 0:01:27]}  Rfd8 {[%clk 0:02:06]} 21. Rfd1 {[%clk 0:01:27]}  Bg4 {[%clk 0:02:02]} 22. Rd6 {[%clk 0:01:21]}  Rxd6 {[%clk 0:01:59]} 23. cxd6 {[%clk 0:01:22]}  Qd7 {[%clk 0:01:59]} 24. Bc5 {[%clk 0:01:21]}  Bxc5 {[%clk 0:01:48]} 25. Qxc5 {[%clk 0:01:22]}  Rxa4 {[%clk 0:01:48]} 26. Bxc6 {[%clk 0:01:15]}  Qd8 {[%clk 0:01:33]} 27. Bxa4 {[%clk 0:01:13]}  Bf3 {[%clk 0:01:28]} 28. d7 {[%clk 0:01:11]} 1-0


[Site "https://www.chess.com"]